bitfinex-derivatives/quotes_ETHF0:USTF0_20260112
["timestamp","ask_amount","ask_price","bid_price","bid_amount"]
[1768233036573,4.319,3127.8,3126.1,0.16011]
[1768233036574,1.96376091,3127.5,3126.1,0.16011]
[1768233038188,4.319,3127.8,3126.1,0.16011]
[1768233038391,0.00345501,3128.0,3126.5,0.138392]
[1768233038685,0.00345501,3128.0,3126.6,0.16009]
[1768233038893,0.00345501,3128.0,3126.7,0.138392]
[1768233040187,0.00345501,3128.0,3125.9,3.1]
[1768233040188,1.96721592,3128.0,3126.2,0.138392]
[1768233041286,1.96721592,3128.0,3126.3,0.138392]
[1768233041793,1.96721592,3128.0,3126.3,0.298492]
[1768233042790,0.00345501,3128.0,3126.5,0.298482]
[1768233043091,0.00345501,3128.0,3126.6,0.138392]
[1768233044585,0.00345501,3128.0,3126.6,0.298482]
[1768233044793,0.00345501,3128.0,3126.7,0.138392]
[1768233046293,0.00345501,3128.0,3126.7,0.298472]
[1768233046694,0.00345501,3128.0,3126.8,0.138392]
[1768233049897,0.00345501,3128.0,3126.8,0.298472]
[1768233050094,0.00345501,3128.0,3126.8,0.138392]
[1768233050303,0.00345501,3128.0,3127.1,0.138392]
[1768233050501,0.00345501,3128.0,3127.1,0.14204992]
[1768233053507,1.96721592,3128.0,3126.5,0.138392]
[1768233053695,1.96721592,3128.0,3126.3,0.1601]
[1768233053696,1.96376091,3127.5,3126.3,0.1601]
[1768233054103,2.10067516,3128.0,3126.3,0.1601]
[1768233054611,0.13345924,3127.9,3126.3,0.16266983]
[1768233054802,2.09722015,3127.5,3126.3,0.00256983]
[1768233055010,1.322,3127.4,3126.3,0.00256983]
[1768233055402,0.13345924,3127.3,3125.7,0.16013]
[1768233055605,1.96376091,3127.0,3125.1,0.138392]
[1768233055807,1.96376091,3127.0,3125.3,0.16016]
[1768233056313,1.96376091,3127.0,3125.3,0.16402543]
[1768233057917,1.96376091,3127.0,3125.4,0.16015]
[1768233058614,0.13345924,3127.3,3125.5,0.16014]
[1768233058816,3.201,3127.6,3125.6,0.138392]
[1768233059016,3.201,3127.6,3126.3,0.1601]
[1768233059211,1.322,3128.1,3126.3,0.298492]
[1768233059412,0.89527358,3127.9,3126.4,0.1601]
[1768233059717,1.322,3128.1,3126.5,0.16009]
[1768233059918,2.09722015,3127.8,3125.9,0.16012]
[1768233060108,0.13345924,3127.7,3126.0,0.16012]
[1768233060309,0.13345924,3127.7,3125.8,0.16013]
[1768233060513,2.09722015,3127.3,3125.8,0.16013]
[1768233062514,2.09722015,3127.8,3126.0,0.16012]
[1768233062710,0.89606364,3127.7,3126.1,0.138392]
[1768233062913,4.65545924,3127.8,3126.1,0.138392]
[1768233063505,4.65545924,3127.8,3125.4,4.77985417]
[1768233063506,4.522,3127.8,3126.5,0.16009]
[1768233063712,4.522,3127.8,3126.6,0.16009]
[1768233064516,0.00345501,3128.0,3126.5,0.138392]
[1768233064812,0.00345501,3128.0,3127.0,0.16007]
[1768233065416,0.00345501,3128.0,3126.2,2.81609326]
[1768233065417,0.00345501,3128.0,3127.1,0.2934651]
[1768233065618,0.00345501,3128.0,3127.1,0.16006]
[1768233065822,0.00345501,3128.0,3126.4,0.1601]
[1768233066015,1.96376091,3127.0,3125.7,0.16013]
[1768233066214,3.28576091,3127.0,3125.7,0.16013]
[1768233067718,1.322,3127.0,3125.7,0.16013]
[1768233069017,2.10695438,3126.9,3125.3,0.00386543]
[1768233070422,0.14319347,3126.8,3125.3,0.00386543]
[1768233073121,0.13209314,3126.6,3125.3,0.00386543]
[1768233073712,6.13209314,3126.6,3125.3,0.00386543]
[1768233074008,0.13209314,3126.5,3125.3,0.00386543]
[1768233074319,4.522,3126.4,3125.3,0.00386543]
[1768233074519,1.321,3126.3,3125.3,0.00386543]
[1768233075113,0.13209314,3126.2,3124.4,0.1602]
[1768233076119,0.13209314,3126.2,3124.4,0.13603121]
[1768233076316,0.13209314,3126.2,3124.8,0.16018]
[1768233076317,1.321,3126.1,3124.8,0.16018]
[1768233077719,1.321,3126.1,3124.6,0.13311604]
[1768233077920,1.321,3126.1,3124.4,0.00291517]
[1768233078724,0.13209314,3126.0,3124.4,0.00291517]
[1768233079424,4.523,3126.2,3124.8,0.16018]
[1768233080417,1.321,3126.3,3124.8,0.16018]
[1768233080619,0.13209314,3127.0,3124.9,0.29329604]
[1768233080823,4.523,3126.9,3125.0,0.16017]
[1768233081025,4.523,3126.9,3124.9,0.13311604]
[1768233081214,4.523,3126.9,3125.3,0.16015]
[1768233081419,4.65509314,3126.9,3125.3,0.16015]
[1768233081621,0.13209314,3126.8,3125.3,0.16015]
[1768233083526,0.13209314,3126.8,3124.9,0.13311604]
[1768233083725,0.13209314,3126.8,3124.7,0.16019]
[1768233083923,0.13209314,3126.8,3124.8,0.16018]
[1768233085025,0.13209314,3126.8,3124.9,0.16018]
[1768233085226,0.13209314,3126.8,3125.1,0.16016]
[1768233085437,3.202,3126.8,3125.0,0.13311604]
[1768233085730,1.321,3127.0,3125.6,0.16014]
[1768233088334,0.13209314,3127.5,3125.6,0.16014]
[1768233088534,1.321,3127.1,3125.6,0.16014]
[1768233088737,0.13209314,3127.0,3125.6,0.16014]
[1768233089530,1.321,3127.0,3125.6,0.16014]
[1768233089731,1.321,3127.0,3125.7,0.16013]
[1768233090235,0.13209314,3127.5,3125.3,0.13311604]
[1768233090427,1.172,3127.6,3126.0,0.16012]
[1768233092631,1.172,3127.6,3126.1,0.16011]
[1768233094135,1.30409314,3127.6,3126.1,0.16011]
[1768233096437,0.14008447,3127.5,3125.5,0.16014]
[1768233096735,0.14008447,3127.4,3125.5,0.16014]
[1768233096941,0.14008447,3127.2,3125.5,0.16014]
[1768233097137,0.14008447,3127.2,3125.6,0.16014]
[1768233097330,0.16004,3127.6,3125.7,0.14158687]
[1768233097639,0.14008447,3127.4,3125.7,0.14158687]
[1768233098030,0.14008447,3127.4,3125.8,0.16013]
[1768233103142,0.16002,3127.9,3126.0,0.16012]
[1768233103352,0.89645759,3127.8,3125.9,0.14158687]
[1768233103538,1.32,3127.9,3126.5,0.16009]
[1768233103843,0.14008447,3127.8,3126.5,0.16009]
[1768233105947,0.14008447,3127.8,3126.0,0.14158687]
[1768233105948,0.14008447,3127.8,3125.9,0.16012]
[1768233106345,0.14008447,3127.8,3126.0,0.16012]
[1768233108046,0.14008447,3127.8,3126.1,0.16011]
[1768233108250,4.521,3127.7,3126.2,0.30169687]
[1768233109355,0.14008447,3127.8,3126.2,0.30169687]
[1768233109658,1.32,3127.7,3126.2,0.30169687]
[1768233110649,1.32,3127.9,3126.5,0.16009]
[1768233111246,0.14008447,3127.8,3126.5,0.16009]
[1768233111549,0.14008447,3127.8,3126.0,0.16012]
[1768233112749,0.14008447,3127.8,3125.7,0.14158687]
[1768233112750,1.32,3127.7,3125.7,0.14158687]
[1768233112950,0.00345501,3128.0,3126.9,0.16007]
[1768233113158,0.00345501,3128.0,3126.9,0.16350252]
[1768233113657,1.32,3129.2,3127.6,0.14158687]
[1768233113853,1.32,3129.4,3127.6,0.14158687]
[1768233114059,1.32,3129.4,3127.9,0.16002]
[1768233114557,1.46349613,3129.4,3127.9,0.16002]
[1768233115655,0.14008447,3129.3,3127.9,0.16002]
[1768233118154,1.32341166,3129.4,3127.9,0.16002]
[1768233118758,1.32341166,3129.4,3128.0,0.16002]
[1768233120760,0.00341166,3129.4,3128.1,0.16001]
[1768233120962,0.00341166,3129.4,3128.6,0.15999]
[1768233121161,0.00341166,3129.4,3128.2,0.14158687]
[1768233121660,11.661,3130.4,3129.0,0.15996]
[1768233121861,1.319,3130.4,3129.0,0.15996]
[1768233122253,1.45908447,3130.4,3128.5,0.30157687]
[1768233122454,0.14008447,3130.3,3128.5,0.15999]
[1768233122758,0.14368377,3130.3,3128.5,0.15999]
[1768233122957,0.14368377,3130.3,3128.0,0.14158687]
[1768233123164,0.14008447,3130.2,3128.0,0.14158687]
[1768233123357,0.14008447,3129.9,3127.9,0.16002]
[1768233123559,0.14008447,3129.8,3127.9,0.16002]
[1768233124663,4.519,3129.7,3128.0,0.16002]
[1768233125058,4.66463244,3129.7,3128.0,0.16002]
[1768233125765,4.519,3129.6,3128.0,0.16002]
[1768233126466,4.519,3129.6,3128.1,0.16001]
[1768233127966,0.14563244,3129.7,3128.1,0.16001]
[1768233128166,1.319,3129.6,3128.1,0.16001]
[1768233130366,0.14563244,3129.7,3128.2,0.16001]
[1768233130563,1.46363244,3129.7,3128.2,0.16001]
[1768233131466,0.0035993,3130.3,3129.2,0.15996]
[1768233131660,0.0035993,3130.3,3129.4,0.15994]
[1768233133169,0.0035993,3130.3,3129.2,0.00299065]
[1768233133868,1.9640196,3129.5,3127.6,0.13474562]
[1768233134372,0.13970977,3129.4,3127.5,0.16004]
[1768233134873,0.13970977,3129.4,3127.5,0.16285415]
[1768233135457,0.13970977,3129.4,3127.7,0.16003]
[1768233135665,1.318,3129.9,3127.9,0.13474562]
[1768233135867,0.13970977,3129.8,3128.3,0.16]
[1768233136468,2.10372937,3129.7,3127.9,0.13474562]
[1768233136666,0.13970977,3129.6,3127.9,0.13474562]
[1768233136963,0.13970977,3129.6,3128.0,0.16002]
[1768233137764,1.9640196,3128.4,3127.5,0.00281415]
[1768233137965,1.318,3128.5,3127.5,0.00281415]
[1768233138358,1.318,3128.6,3127.5,0.00281415]
[1768233142677,1.318,3129.2,3127.8,0.16003]
[1768233143069,1.318,3129.3,3127.8,0.16003]
[1768233143377,1.318,3129.3,3127.9,0.29476562]
[1768233147578,1.318,3129.3,3128.0,0.16002]
[1768233148378,1.318,3129.4,3128.0,0.16002]
[1768233149087,0.13970977,3129.9,3127.9,0.13474562]
[1768233149281,1.318,3130.1,3128.6,0.15998]
[1768233149485,0.13970977,3130.0,3128.6,0.15998]
[1768233149884,1.318,3130.1,3128.7,0.15998]
[1768233150085,0.0035993,3130.3,3129.0,0.15996]
[1768233150289,0.0035993,3130.3,3129.1,0.15996]
[1768233150680,1.3215993,3130.3,3129.1,0.15996]
[1768233151085,0.0035993,3130.3,3129.1,0.15996]
[1768233151690,0.0035993,3130.3,3128.9,0.13474562]
[1768233152993,0.0035993,3130.3,3129.5,0.15994]
[1768233154988,0.0035993,3130.3,3128.9,0.13474562]
[1768233155190,1.126,3131.1,3129.9,0.15992]
[1768233155390,0.13662089,3131.5,3130.1,0.15991]
[1768233155586,4.29642663,3131.7,3129.7,0.13703124]
[1768233155782,1.317,3131.6,3129.7,0.13703124]
[1768233156196,1.32036759,3131.6,3130.4,0.15989]
[1768233157893,0.13662089,3131.5,3129.7,0.30103836]
[1768233158092,0.13662089,3131.5,3129.7,0.14110836]
[1768233158491,0.13662089,3131.5,3129.9,0.15992]
[1768233158693,1.9640196,3131.3,3129.9,0.15992]
[1768233158896,2.10064049,3131.3,3129.9,0.15992]
[1768233160189,0.13662089,3131.2,3129.7,0.00407712]
[1768233161094,1.9640196,3130.8,3129.7,0.00407712]
[1768233161397,0.13662089,3130.7,3129.4,0.15995]
[1768233161594,1.317,3130.6,3129.4,0.15995]
[1768233161898,1.45362089,3130.6,3129.4,0.15995]
[1768233162097,1.317,3130.6,3129.4,0.15995]
[1768233162301,1.317,3130.6,3129.4,0.16391058]
[1768233162490,0.13662089,3130.7,3129.4,0.16391058]
[1768233162695,3.20836759,3131.6,3129.9,0.15992]
[1768233162696,0.13662089,3131.3,3129.9,0.15992]
[1768233162897,1.317,3131.2,3130.0,0.15991]
[1768233163092,0.13662089,3131.1,3129.4,0.16390058]
[1768233163691,0.13662089,3131.1,3129.6,0.15994]
[1768233163892,1.317,3131.0,3129.7,0.15993]
[1768233164196,0.00336759,3131.6,3129.9,0.13703124]
[1768233164501,1.32036759,3131.6,3130.2,0.1599]
[1768233165196,1.32036759,3131.6,3130.3,0.13703124]
[1768233165197,0.00336759,3131.6,3130.3,0.13703124]
[1768233165402,0.00336759,3131.6,3130.8,0.15987]
[1768233165593,0.00336759,3131.6,3129.8,0.13703124]
[1768233165794,0.00336759,3131.6,3130.5,0.15989]
[1768233168508,0.13998848,3131.6,3129.9,0.15992]
[1768233172311,0.13662089,3131.3,3129.4,0.00396058]
[1768233172607,0.13662089,3131.1,3129.5,0.15994]
[1768233173704,1.9640196,3130.9,3129.5,0.15994]
[1768233173911,2.10064049,3130.9,3129.5,0.15994]
[1768233174299,0.13662089,3130.8,3129.4,0.00396058]
[1768233175109,3.198,3131.2,3129.5,0.13703124]
[1768233175309,0.13662089,3131.3,3129.8,0.15993]
[1768233175514,1.316,3131.2,3129.5,0.13703124]
[1768233176010,3.41664049,3131.2,3129.4,0.00396058]
[1768233176204,3.41664049,3131.2,3129.4,0.16391058]
[1768233176817,0.13662089,3131.1,3129.4,0.16391058]
[1768233178805,0.89415917,3131.0,3129.4,0.16391058]
[1768233179010,0.13662089,3131.0,3129.4,0.16391058]
[1768233179717,0.13662089,3131.0,3129.5,0.15994]
[1768233179922,3.2800196,3131.2,3129.5,0.15994]
[1768233180106,0.89462508,3131.1,3129.5,0.15994]
[1768233180310,0.89476213,3131.0,3129.5,0.15994]
[1768233180612,1.316,3130.9,3129.5,0.15994]
[1768233181410,1.316,3130.9,3129.4,0.14099182]
[1768233181411,1.09742663,3131.7,3129.9,0.13703124]
[1768233181608,5.40895347,3131.5,3129.9,0.29695124]
[1768233181810,0.89495347,3131.4,3129.9,0.29695124]
[1768233182011,0.89495347,3131.3,3129.9,0.29695124]
[1768233182317,0.13662089,3131.1,3129.5,0.15994]
[1768233183717,0.13662089,3131.1,3129.6,0.15993]
[1768233183913,1.316,3131.0,3129.9,0.15992]
[1768233185817,1.316,3131.0,3129.4,0.14099182]
[1768233186021,3.2800196,3131.0,3129.4,0.14099182]
[1768233186215,3.2800196,3131.0,3129.4,0.30094182]
[1768233186419,3.41423005,3131.0,3129.4,0.16391058]
[1768233187121,0.89527532,3130.9,3129.4,0.16390058]
[1768233187322,5.40927532,3130.8,3129.4,0.16390058]
[1768233187522,4.514,3130.8,3129.4,0.16390058]
[1768233187716,0.13421045,3131.4,3129.4,0.16390058]
[1768233187923,0.13421045,3131.2,3129.4,0.16390058]
[1768233188114,0.13421045,3131.0,3129.4,0.16390058]
[1768233188718,0.13421045,3131.0,3129.5,0.15994]
[1768233189021,4.514,3130.9,3129.6,0.15993]
[1768233189611,6.392,3131.5,3129.7,0.13642323]
[1768233189816,4.514,3131.4,3129.8,0.15992]
[1768233190222,0.13421045,3131.3,3129.8,0.15992]
[1768233191219,0.13421045,3131.3,3129.4,0.00396058]
[1768233191927,0.13421045,3130.6,3129.4,0.00396058]
[1768233192120,1.45021045,3130.5,3128.7,0.29640323]
[1768233192319,1.316,3130.5,3129.1,0.15996]
[1768233192521,1.316,3130.4,3129.1,0.30245874]
[1768233192821,0.13604677,3131.0,3129.2,0.15996]
[1768233193023,0.15985,3131.4,3129.2,0.16374725]
[1768233193024,0.13604677,3130.8,3129.2,0.16374725]
[1768233193222,0.89671928,3130.7,3129.2,0.16374725]
[1768233194323,1.03276605,3130.7,3129.2,0.16374725]
[1768233194519,4.514,3130.9,3128.7,0.15998]
[1768233194520,0.13604677,3130.5,3128.7,0.15998]
[1768233194721,0.13604677,3130.3,3128.7,0.15998]
[1768233195017,4.514,3130.2,3128.8,0.15998]
[1768233195222,3.198,3130.1,3128.8,0.15998]
[1768233195519,3.198,3130.1,3128.8,0.16387017]
[1768233196022,3.198,3130.1,3128.9,0.15997]
[1768233196324,0.13604677,3130.7,3128.9,0.15997]
[1768233196525,5.41056777,3130.6,3128.9,0.15997]
[1768233196823,0.89656777,3130.5,3128.9,0.15997]
[1768233197021,4.09456777,3130.5,3128.8,0.14638891]
[1768233197324,1.316,3130.4,3129.2,0.15995]
[1768233197922,1.316,3130.3,3129.2,0.15995]
[1768233198123,1.316,3130.3,3129.3,0.15995]
[1768233198318,1.316,3130.4,3129.4,0.15994]
[1768233198518,0.13604677,3131.2,3129.5,0.15994]
[1768233198826,5.41108221,3131.1,3129.7,0.15993]
[1768233199021,4.514,3131.1,3129.7,0.15993]
[1768233199329,0.13604677,3131.4,3129.7,0.15993]
[1768233199521,0.13604677,3131.2,3129.7,0.15993]
[1768233199722,0.13604677,3131.0,3129.1,0.15996]
[1768233199922,0.13604677,3130.8,3129.1,0.15996]
[1768233200221,0.89744472,3130.7,3129.1,0.15996]
[1768233200528,0.13604677,3130.8,3129.1,0.15996]
[1768233200829,0.89744661,3130.7,3129.1,0.15996]
[1768233201127,0.13604677,3130.8,3129.1,0.15996]
[1768233201325,0.89671721,3130.7,3129.1,0.15996]
[1768233201527,0.13604677,3130.8,3129.1,0.15996]
[1768233201727,0.89686981,3130.7,3129.1,0.15996]
[1768233202025,0.13604677,3130.8,3129.1,0.15996]
[1768233202222,0.89686913,3130.7,3129.1,0.15996]
[1768233202421,0.13604677,3130.8,3129.1,0.15996]
[1768233202622,0.89701973,3130.7,3129.1,0.15996]
[1768233202824,0.13604677,3130.8,3129.1,0.15996]
[1768233203028,0.89701986,3130.7,3129.1,0.15996]
[1768233203228,0.13604677,3130.8,3129.1,0.15996]
[1768233203431,0.89704422,3130.7,3129.1,0.15996]
[1768233203630,0.13604677,3130.8,3129.1,0.15996]
[1768233203830,0.89704792,3130.7,3129.1,0.15996]
[1768233204025,0.13604677,3130.8,3129.1,0.15996]
[1768233204232,0.8970485,3130.7,3129.1,0.15996]
[1768233204432,0.13604677,3130.8,3129.1,0.15996]
[1768233204631,0.8970398,3130.7,3129.1,0.15996]
[1768233204831,0.13604677,3130.8,3129.1,0.15996]
[1768233205127,0.8970397,3130.7,3129.1,0.15996]
[1768233205334,0.13604677,3130.8,3129.1,0.15996]
[1768233205534,0.89704526,3130.7,3129.1,0.15996]
[1768233205729,0.13604677,3130.8,3129.1,0.15996]
[1768233205930,0.89704145,3130.7,3129.1,0.15996]
[1768233206126,0.13604677,3130.8,3129.1,0.15996]
[1768233206332,0.89704062,3130.7,3129.1,0.15996]
[1768233206636,0.13604677,3130.8,3129.1,0.15996]
[1768233206831,1.03313606,3130.7,3129.1,0.15996]
[1768233207030,0.13604677,3130.7,3129.1,0.15996]
[1768233208535,1.316,3130.6,3129.3,0.15995]
[1768233208734,1.316,3130.6,3129.4,0.15994]
[1768233209639,0.13604677,3131.1,3129.4,0.15994]
[1768233209934,5.41112454,3131.0,3129.4,0.15994]
[1768233210136,0.89712454,3130.9,3129.4,0.15994]
[1768233210329,0.13604677,3130.9,3129.4,0.15994]
[1768233210838,0.89711321,3130.8,3129.4,0.15994]
[1768233211036,0.13604677,3130.9,3129.4,0.15994]
[1768233211236,0.89711279,3130.8,3129.4,0.15994]
[1768233211538,0.24893472,3130.6,3128.8,2.81998343]
[1768233211840,2.22463416,3129.9,3128.2,0.30250874]
[1768233212141,2.21413675,3129.8,3128.2,0.30250874]
[1768233212449,1.317,3129.8,3128.3,0.14249874]
[1768233212642,0.8969177,3129.7,3128.3,0.14249874]
[1768233212833,1.317,3129.8,3128.3,0.14654294]
[1768233213033,0.89692469,3129.7,3128.3,0.14654294]
[1768233213338,1.317,3129.8,3128.3,0.14654294]
[1768233213730,1.317,3130.0,3128.4,0.14249874]
[1768233214730,1.317,3130.0,3128.4,0.16]
[1768233214929,1.317,3130.0,3128.5,0.13229647]
[1768233216744,1.317,3130.0,3128.7,0.29227647]
[1768233217041,1.317,3130.0,3128.8,0.13229647]
[1768233222533,1.317,3130.0,3129.0,0.15996]
[1768233222840,3.198,3130.3,3129.1,0.13229647]
[1768233223743,3.198,3130.3,3129.1,0.29225647]
[1768233225538,3.198,3130.3,3129.1,0.15996]
[1768233225732,3.198,3130.3,3128.7,0.13229647]
[1768233225938,3.198,3130.3,3128.4,0.15999]
[1768233225939,1.30917667,3130.2,3128.4,0.15999]
[1768233226135,0.89656191,3130.1,3128.4,0.15999]
[1768233226341,0.99238,3130.1,3128.3,0.0040442]
[1768233226541,0.99238,3130.0,3128.3,0.0040442]
[1768233226742,0.99238,3129.9,3128.3,0.0040442]
[1768233226940,0.89656191,3129.8,3128.3,0.0040442]
[1768233227147,0.89656191,3129.7,3128.3,0.13634067]
[1768233227342,3.29381809,3130.3,3128.3,0.13634067]
[1768233227649,1.30876425,3130.2,3128.3,0.29634067]
[1768233227840,1.21294616,3130.1,3128.3,0.29634067]
[1768233228145,0.89625956,3130.0,3128.3,0.29634067]
[1768233228445,0.89625956,3129.9,3128.3,0.29634067]
[1768233228646,0.89625956,3129.8,3128.3,0.29634067]
[1768233228844,0.8961518,3129.7,3128.3,0.29634067]
[1768233229043,1.317,3129.6,3128.3,0.29634067]
[1768233229738,1.317,3129.6,3128.3,0.0040442]
[1768233229935,0.09661299,3129.4,3127.3,0.13229647]
[1768233230147,0.89617104,3129.3,3127.3,0.13229647]
[1768233230538,1.17572387,3129.3,3127.3,0.13229647]
[1768233230837,0.89617104,3129.2,3127.3,0.13229647]
[1768233231039,0.09661299,3129.0,3127.3,0.00362554]
[1768233231241,0.89617104,3128.9,3127.5,0.13229647]
[1768233231450,1.317,3129.1,3127.6,0.13229647]
[1768233232142,3.20263561,3129.3,3127.3,0.00362554]
[1768233232143,0.00363561,3129.3,3128.0,0.29231647]
[1768233232449,1.32063561,3129.3,3128.1,0.29230647]
[1768233232743,1.32063561,3129.3,3128.2,0.13229647]
[1768233233542,0.00363561,3129.3,3128.3,0.13229647]
[1768233235247,0.00363561,3129.3,3128.2,0.16001]
[1768233235540,0.00363561,3129.3,3127.8,0.13229647]
[1768233239239,0.00363561,3129.3,3128.2,0.13229647]
[1768233239846,0.00363561,3129.3,3128.2,0.29230647]
[1768233240148,0.00363561,3129.3,3128.3,0.13229647]
[1768233240950,0.00363561,3129.3,3127.8,0.13229647]
[1768233241241,0.00363561,3129.3,3127.3,0.13592201]
[1768233241242,0.91102839,3129.2,3127.3,0.13592201]
[1768233241442,0.91102839,3129.1,3127.3,0.13592201]
[1768233241648,4.516,3129.0,3127.6,0.13229647]
[1768233242344,1.317,3129.0,3127.6,0.13229647]
[1768233244045,1.317,3129.0,3127.3,0.00362554]
[1768233245253,0.91059701,3128.9,3127.3,0.00362554]
[1768233245451,1.317,3129.0,3127.3,0.00362554]
[1768233245752,1.07043616,3128.9,3127.3,0.00362554]
[1768233245956,1.16709838,3128.8,3126.6,0.13446581]
[1768233246147,4.11546616,3128.7,3126.6,0.13446581]
[1768233246349,1.00711838,3128.6,3126.6,0.13446581]
[1768233246648,4.10946616,3128.5,3126.6,0.13446581]
[1768233246849,0.91046616,3128.4,3126.6,0.13735896]
[1768233247046,3.199,3128.5,3126.6,0.13735896]
[1768233247948,0.90994842,3128.4,3126.6,0.13735896]
[1768233248248,3.199,3128.5,3126.6,0.13735896]
[1768233248650,0.90972746,3128.4,3126.6,0.13735896]
[1768233248858,0.90975091,3128.3,3126.6,0.13735896]
[1768233249051,5.52038905,3128.5,3126.6,0.13735896]
[1768233249259,5.52038905,3128.5,3124.2,3.205]
[1768233249260,2.22463416,3127.8,3126.1,0.13446581]
[1768233249458,2.22463416,3127.8,3125.8,0.16013]
[1768233249753,0.90948846,3127.7,3125.8,0.16013]
[1768233249967,0.0955907,3127.5,3125.6,0.13446581]
[1768233250163,0.90948846,3127.4,3125.6,0.13446581]
[1768233250349,3.2,3127.3,3125.6,0.13742473]
[1768233251456,5.16765394,3127.3,3125.6,0.13742473]
[1768233254559,1.317,3127.2,3125.9,0.1389346]
[1768233254760,1.317,3127.2,3126.0,0.1389346]
[1768233254949,1.96765394,3127.8,3126.2,0.1389346]
[1768233255153,4.518,3127.7,3126.2,0.1389346]
[1768233256059,4.518,3127.7,3126.3,0.1389346]
[1768233257265,1.96765394,3128.1,3126.3,0.1389346]
[1768233257563,1.96765394,3128.1,3126.5,0.1389346]
[1768233257564,4.518,3128.0,3126.5,0.1389346]
[1768233258554,4.518,3128.0,3126.5,0.2990246]
[1768233258755,4.518,3128.0,3126.6,0.1389346]
[1768233259662,4.518,3128.0,3126.7,0.2990146]
[1768233259858,1.317,3127.9,3126.8,0.1389346]
[1768233260061,1.317,3127.8,3126.9,0.1389346]
[1768233263068,1.317,3127.8,3127.0,0.1389346]
[1768233263272,1.317,3128.2,3127.0,0.1389346]
[1768233264666,1.317,3128.2,3126.5,0.1389346]
[1768233264868,1.317,3128.2,3126.5,0.2990246]
[1768233265064,1.317,3128.2,3126.6,0.16009]
[1768233265472,1.317,3128.2,3126.6,0.2990246]
[1768233265864,1.317,3128.2,3126.7,0.2990146]
[1768233266573,1.96765394,3128.6,3127.0,0.1389346]
[1768233266765,4.518,3128.5,3127.0,0.1389346]
[1768233267167,4.518,3128.4,3127.0,0.1389346]
[1768233267368,12.40484878,3129.1,3127.2,0.1389346]
[1768233267677,5.42680124,3129.0,3127.2,0.1389346]
[1768233267880,0.90880124,3128.9,3127.2,0.1389346]
[1768233268176,4.518,3129.0,3127.2,0.1389346]
[1768233268371,0.90896048,3128.9,3127.2,0.1389346]
[1768233268570,0.90896048,3128.9,3127.2,0.2989946]
[1768233269474,2.06284878,3129.1,3127.6,0.1389346]
[1768233269475,3.201,3129.1,3127.6,0.1389346]
[1768233269680,1.317,3128.8,3127.6,0.1389346]
[1768233270672,3.201,3129.1,3128.2,0.16001]
[1768233270873,3.201,3129.1,3128.2,0.30257618]
[1768233271073,3.201,3129.1,3128.2,0.16364158]
[1768233271273,1.32063561,3129.3,3128.2,0.30257618]
[1768233276276,1.32063561,3129.3,3128.3,0.30500966]
[1768233278476,0.00363561,3129.3,3128.4,0.30500966]
[1768233278676,0.00363561,3129.3,3128.2,0.00363158]
[1768233278879,0.00363561,3129.3,3128.7,0.14500966]
[1768233279185,1.317,3130.0,3128.7,0.14500966]
[1768233279571,1.317,3130.0,3128.9,0.15997]
[1768233280181,1.31936975,3130.0,3128.9,0.15997]
[1768233280375,1.31936975,3130.0,3128.9,0.30497966]
[1768233280576,1.31936975,3130.0,3129.0,0.15997]
[1768233283375,0.00236975,3130.0,3129.1,0.30496966]
[1768233283883,0.00236975,3130.0,3129.2,0.15996]
[1768233286078,0.00236975,3130.0,3129.1,0.14500966]
[1768233288780,0.00236975,3130.0,3129.6,0.30493966]
[1768233289088,1.06408008,3130.2,3129.7,0.14500966]
[1768233289485,10.342,3131.0,3129.7,0.14500966]
[1768233289686,3.199,3131.6,3129.8,0.14500966]
[1768233289882,1.317,3131.3,3130.1,0.15991]
[1768233290293,1.317,3131.3,3129.5,0.15994]
[1768233290887,1.96765394,3131.0,3129.5,0.15994]
[1768233291190,0.00269472,3131.6,3129.9,0.14500966]
[1768233291384,3.20169472,3131.6,3130.3,0.1599]
[1768233291592,4.51869472,3131.6,3130.3,0.1599]
[1768233294193,6.48634866,3131.6,3130.2,0.14500966]
[1768233294394,6.48634866,3131.6,3129.9,0.15992]
[1768233295192,1.96765394,3131.1,3129.9,0.15992]
[1768233296097,0.10127355,3131.5,3129.9,0.15992]
[1768233296296,4.515,3131.4,3130.0,0.15991]
[1768233296598,1.96765394,3130.9,3129.4,0.15994]
[1768233297703,1.96765394,3129.6,3128.5,0.15999]
[1768233297888,1.316,3129.7,3128.5,0.15999]
[1768233299299,1.96765394,3129.1,3127.8,0.16003]
[1768233300507,1.97113277,3129.1,3127.8,0.16245688]
[1768233300691,1.31947883,3129.1,3128.0,0.14500966]
[1768233300891,1.31947883,3129.1,3127.8,0.00242688]
[1768233300892,0.00347883,3129.1,3128.1,0.30501966]
[1768233301091,0.00347883,3129.1,3128.2,0.14500966]
[1768233301298,0.00347883,3129.1,3128.1,0.16001]
[1768233301706,0.00347883,3129.1,3128.1,0.30501966]
[1768233302001,0.00347883,3129.1,3128.2,0.14500966]
[1768233302191,0.00347883,3129.1,3128.3,0.14500966]
[1768233302391,0.00347883,3129.1,3128.4,0.14500966]
[1768233303298,0.00347883,3129.1,3128.1,0.14500966]
[1768233304594,0.00347883,3129.1,3128.3,0.30212792]
[1768233304803,1.316,3129.8,3128.4,0.14212792]
[1768233305397,1.316,3129.8,3128.4,0.16]
[1768233305593,1.316,3129.9,3128.5,0.14212792]
[1768233305805,1.31844406,3129.9,3128.5,0.14212792]
[1768233306704,0.00244406,3129.9,3128.5,0.14212792]
[1768233309299,0.00244406,3129.9,3128.7,0.14212792]
[1768233309611,0.00244406,3129.9,3128.7,0.30210792]
[1768233309803,1.96765394,3131.0,3129.2,0.14212792]
[1768233310019,2.22651651,3130.9,3129.3,0.14212792]
[1768233310200,1.316,3130.9,3129.3,0.14212792]
[1768233310702,1.96765394,3130.0,3128.5,3.40211792]
[1768233311006,1.97038172,3130.0,3128.6,0.14212792]
[1768233311606,0.00272778,3130.0,3128.7,0.14212792]
[1768233313099,0.00272778,3130.0,3128.7,0.30210792]
[1768233313497,0.00272778,3130.0,3128.8,0.14105315]
[1768233314401,0.00272778,3130.0,3129.3,0.14105315]